[Event "Romanian-ch Youth Open U12 2024"]
[Site "Eforie Nord"]
[Date "2024.04.12"]
[Round "1.1"]
[White "Negrean, Andrei"]
[Black "Birladeanu, Alexandru"]
[Result "1-0"]
[ECO "D30"]
[WhiteElo "2250"]
[BlackElo "1549"]
[Annotator "TA"]
[PlyCount "91"]
[EventDate "2024.04.10"]
[EventType "swiss"]
[EventCountry "ROU"]
[SourceTitle "playchess.com"]
[Source "ChessBase"]
[SourceQuality "1"]
[TimeControl "5400+30"]

{[%evp 9,90,12,29,12,25,23,34,22,20,20,19,30,52,37,52,31,33,34,33,36,42,8,28,16,229,239,237,231,218,235,207,222,285,256,258,241,287,270,723,731,732,736,768,764,1019,1012,29964,29968,29972,29973,29977,29977,29977,29978,29978,29979,29982,29983,29984,29985,29985,29986,29987,29988,29988,29988,29988,29989,29989,29990,29990,29991,29993,29993,29993,29994,29995,29996,29996,29997,29998,29999,29999]} 1. Nf3 {[%emt 0:00:02]} d5 {[%emt 0:00:14]} 2. d4 {[%emt 0:00:06]} e6 {[%emt 0:00:07]} 3. c4 {[%emt 0:00:30]} c6 {[%emt 0:03:25]} 4. Nbd2 {[%emt 0:00:46]} f5 {[%emt 0:03:23]} 5. Ne5 {[%emt 0:03:13]} Bd6 {[%emt 0:02:35]} 6. Ndf3 {[%emt 0:00:56]} Nf6 {[%emt 0:01:27]} 7. g3 {[%emt 0:03:56]} O-O {[%emt 0:04:28]} 8. Bg2 {[%emt 0:00:24] White is slightly better.} Nbd7 {[%emt 0:03:10]} 9. O-O {[%emt 0:05:38]} Ne4 {[%emt 0:05:10]} 10. Bf4 {[%emt 0:02:54]} g5 {[%emt 0:11:43]} 11. Nxd7 {[%emt 0:04:22]} Bxd7 {[%emt 0:01:27]} 12. Bxd6 {[%emt 0:03:05]} Nxd6 {[%emt 0:00:21]} 13. Ne5 {[%emt 0:04:25]} Nxc4 {[%emt 0:04:44]} 14. Nxc4 {[%emt 0:00:13]} dxc4 {[%emt 0:00:04]} 15. a4 {[%emt 0:04:00]} a6 {[%emt 0:05:56]} 16. Qc1 {[%emt 0:05:15]} b5 $2 {[%emt 0:01:25] [#] This costs Black the game.} (16... f4 $11 {and Black stays safe.}) 17. axb5 $18 {[%emt 0:00:05]} axb5 {[%emt 0:00:10]} 18. Rxa8 {[%emt 0:00:03]} Qxa8 {[%emt 0:00:10]} 19. Qxg5+ {[%emt 0:00:05]} Kh8 {[%emt 0:03:35]} 20. Qe7 {[%emt 0:06:29]} Qe8 {[%emt 0:04:06] [#]} 21. Qd6 {[%emt 0:01:08]} Rf7 {[%emt 0:03:28]} 22. Ra1 {[%emt 0:03:28] Against Qa8. Ra7 is the strong threat.} Kg7 {[%emt 0:03:44]} 23. Ra7 {[%emt 0:02:54] And now Bf3 would win.} Qf8 $2 {[%emt 0:10:36]} (23... e5 24. dxe5 Qe6) 24. Rxd7 {[%emt 0:04:24]} Qxd6 {[%emt 0:01:45]} 25. Rxd6 {[%emt 0:00:02][%mdl 4096] Endgame. KRB-KR} Rc7 {[%emt 0:00:40]} 26. Rxe6 {[%emt 0:08:31]} b4 {[%emt 0:00:40]} 27. Rxc6 {[%emt 0:00:30]} Rxc6 {[%emt 0:00:24]} 28. Bxc6 {[%emt 0:00:02] White mates.} c3 {[%emt 0:02:11]} 29. bxc3 {[%emt 0:00:05]} bxc3 {[%emt 0:00:20] KB-K3P} 30. Ba4 {[%emt 0:00:03]} Kf6 {[%emt 0:00:09]} 31. f3 {[%emt 0:00:09]} Ke6 {[%emt 0:00:09]} 32. e4 {[%emt 0:00:03]} fxe4 {[%emt 0:00:09]} 33. fxe4 {[%emt 0:00:01] KB-KPP} h6 {[%emt 0:00:14][%cal Bh7h6,Bh6h5][%mdl 32]} 34. Kf2 {[%emt 0:00:04]} Kd6 {[%emt 0:00:13]} 35. Ke3 {[%emt 0:00:04]} h5 {[%emt 0:00:09]} 36. e5+ {[%emt 0:00:04]} Kd5 {[%emt 0:00:05]} 37. Bb3+ {[%emt 0:00:04]} Kc6 {[%emt 0:00:08]} 38. d5+ {[%emt 0:00:02][%cal Bd4d5,Bd5d6][%mdl 32]} Kd7 {[%emt 0:00:09]} 39. d6 {[%emt 0:00:09]} h4 {[%emt 0:00:23]} 40. gxh4 {[%emt 0:00:02] KB-KP} Kd8 {[%emt 0:00:18]} 41. e6 {[%emt 0:00:04]} Ke8 {[%emt 0:00:21]} 42. Ba4+ {[%emt 0:00:04]} Kf8 {[%emt 0:00:21]} 43. e7+ {[%emt 0:00:02]} Kg7 {[%emt 0:00:07]} 44. e8=Q {[%emt 0:00:01]} c2 {[%emt 0:00:18]} 45. Bxc2 {[%emt 0:00:06]} Kf6 {[%emt 0:00:11]} 46. Qe7# {[%emt 0:00:02] Weighted Error Value: White=0.03 (flawless) /Black=0.46.  Loses game:     	---       	Black=1      Mistake:       	---       	Black=1      Inaccurate:     	White=1     	---        OK:         	White=9     	Black=5      Best:        	White=3     	Black=1} 1-0

[Event "Romanian-ch Youth Open U12 2024"]
[Site "Eforie Nord"]
[Date "2024.04.12"]
[Round "1.2"]
[White "Tarabic, Yanis-Andrei"]
[Black "Petroff, Vlad"]
[Result "0-1"]
[ECO "B22"]
[WhiteElo "1542"]
[BlackElo "1999"]
[Annotator "TA"]
[PlyCount "204"]
[EventDate "2024.04.10"]
[EventType "swiss"]
[EventCountry "ROU"]
[SourceTitle "playchess.com"]
[Source "ChessBase"]
[SourceQuality "1"]
[TimeControl "5400+30"]

{[%evp 74,203,0,0,0,0,0,0,43,-141,15,-124,-128,-143,-133,-137,-137,-183,-130,-158,-116,-226,-174,-157,-105,-106,-18,-97,-96,-115,-112,-239,-247,-329,-329,-329,-328,-329,-247,-258,-258,-340,-317,-329,-232,-306,-294,-342,-352,-343,-335,-343,-348,-373,-358,-570,-568,-582,-506,-591,-559,-590,-579,-583,-482,-595,-570,-513,-358,-331,0,-500,-478,-631,-625,-597,-581,-885,-920,-985,-985,-29998,-952,-829,-768,-1653,-958,-898,-869,-821,-820,-29970,-1097,-1147,-1060,-7899,-7021,-12825,-2097,-5879,-5289,-29985,-29986,-29986,-29987,-29987,-29984,-29986,-29987,-29987,-29988,-29988,-29989,-29990,-29991,-29991,-29991,-29991,-29989,-29992,-29993,-29993,-29992,-29994,-29995,-29995,-29996,-29997,-29998,-29998,-29999,-29999]} 1. e4 {[%emt 0:00:04]} c5 {[%emt 0:00:13]} 2. Nf3 {[%emt 0:00:13]} Nc6 {[%emt 0:00:33]} 3. c3 {[%emt 0:00:31]} d5 {[%emt 0:01:17]} 4. exd5 {[%emt 0:02:44]} Qxd5 {[%emt 0:00:10]} 5. Be2 {[%emt 0:00:28]} e5 {[%emt 0:01:14]} 6. d3 {[%emt 0:02:30] B22: Sicilian: 2 c3.} Bf5 {[%emt 0:01:03]} 7. O-O {[%emt 0:00:58]} Nf6 {[%emt 0:00:53]} 8. Re1 $146 {[%emt 0:01:38]} ({Predecessor:} 8. Na3 Rd8 9. d4 cxd4 10. Bc4 Qd7 11. cxd4 Bxa3 12. bxa3 O-O 13. Bb2 exd4 14. Bb5 {½-½ Lebiedzinski,M (1486)-Krasucki,P (2000) Wloclawek CC Classic 12th 2015 (6)}) 8... Be7 {[%emt 0:00:46]} 9. c4 {[%emt 0:03:26]} Qd6 {[%emt 0:01:34]} 10. Nc3 {[%emt 0:01:06]} a6 {[%emt 0:00:20]} 11. h3 {[%emt 0:00:49]} h6 {[%emt 0:00:26]} 12. b3 {[%emt 0:05:53]} O-O {[%emt 0:01:10]} 13. a3 {[%emt 0:03:15]} Rad8 {[%emt 0:01:45]} 14. Bb2 {[%emt 0:01:24]} Rfe8 {[%emt 0:03:11]} 15. Qc2 {[%emt 0:01:04]} Bf8 {[%emt 0:02:00]} 16. Rad1 {[%emt 0:00:57]} Bg6 {[%emt 0:01:01]} 17. Bf1 {[%emt 0:02:54]} Bh5 {[%emt 0:07:40]} 18. Be2 {[%emt 0:04:24]} Bxf3 {[%emt 0:02:09]} 19. Bxf3 {[%emt 0:01:35]} Nd4 {[%emt 0:00:05]} 20. Qb1 {[%emt 0:00:29]} Qd7 {[%emt 0:01:11]} 21. Be4 {[%emt 0:02:14]} Nxb3 {[%emt 0:01:25]} 22. Nd5 {[%emt 0:00:32]} Nxe4 {[%emt 0:01:35]} 23. Rxe4 {[%emt 0:01:50]} Nd4 {[%emt 0:01:25]} 24. Rde1 {[%emt 0:01:27]} Bd6 {[%emt 0:05:17]} 25. Bxd4 {[%emt 0:02:49]} exd4 {[%emt 0:01:23]} 26. Qb6 {[%emt 0:08:27]} Rxe4 {[%emt 0:08:14]} 27. Rxe4 {[%emt 0:00:14]} Rc8 {[%emt 0:02:50]} 28. Kh1 {[%emt 0:09:38]} Kh7 {[%emt 0:02:46]} 29. Qb3 {[%emt 0:04:31]} Rb8 {[%emt 0:02:14]} 30. Qb6 {[%emt 0:00:44]} Qc6 {[%emt 0:02:57]} 31. a4 {[%emt 0:02:03]} Rc8 {[%emt 0:07:16]} 32. Re1 {[%emt 0:01:15]} h5 {[%emt 0:12:45]} 33. Kg1 {[%emt 0:00:42]} Kg8 {[%emt 0:05:06]} 34. Kf1 {[%emt 0:01:41]} Kf8 {[%emt 0:00:36]} 35. Rb1 {[%emt 0:07:13]} Rb8 {[%emt 0:00:52]} 36. Re1 {[%emt 0:03:01]} Qd7 {[%emt 0:03:23]} 37. Rb1 {[%emt 0:02:02]} f6 {[%emt 0:01:16]} 38. f4 {[%emt 0:01:34]} Qc6 {[%emt 0:02:26]} 39. Kf2 {[%emt 0:03:04]} Kf7 {[%emt 0:03:28]} 40. Kg1 {[%emt 0:02:07]} Ke6 {[%emt 0:01:50]} 41. Kh1 $2 {[%emt 0:02:03]} (41. Qb2 $14 {stays ahead.} Kf7 42. Qe2) 41... Kd7 $2 {[%emt 0:01:57]} (41... Qxa4 $2 42. Re1+ Kf7 43. Qxd6 $18) (41... Qxb6 $17 42. Rxb6 Kd7) 42. Re1 {[%emt 0:00:56]} (42. Qb3 $11 Ke8 43. Qd1) 42... Qxb6 $17 {[%emt 0:04:30]} ({Inferior is} 42... Qxa4 43. Re7+ Bxe7 44. Qc7+ Ke6 45. Qxe7+ Kf5 46. Qe4#) 43. Nxb6+ {[%emt 0:15:31]} Kc6 {[%emt 0:00:05]} 44. a5 {[%emt 0:00:00]} Bxf4 {[%emt 0:01:06]} 45. Re7 {[%emt 0:00:00]} (45. Re6+ $17 Bd6 46. g3) 45... Bc7 {[%emt 0:01:25]} (45... h4 $19 {aiming for ...Bd6.} 46. g4 hxg3) 46. Re6+ $17 {[%emt 0:00:00]} Bd6 {[%emt 0:00:09]} 47. Kg1 {[%emt 0:00:00]} (47. g3 $17) 47... Rf8 {[%emt 0:01:43]} 48. Kf2 {[%emt 0:00:00]} Kc7 {[%emt 0:01:49]} (48... h4 $142 49. Kf3 Rg8) 49. Kf3 $17 {[%emt 0:00:00]} Rd8 {[%emt 0:02:25]} ({Better is} 49... h4 $17 {...Rh8 would now be deadly.} 50. Kg4 Rh8) 50. Nd5+ {[%emt 0:00:00]} (50. Ke4 $11) 50... Kd7 {[%emt 0:00:44]} 51. Re1 {[%emt 0:00:00]} Re8 {[%emt 0:00:25]} 52. Rb1 {[%emt 0:00:00]} (52. Nb6+ $17 Kd8 53. Rxe8+ Kxe8 54. Ke4) 52... Kc8 $19 {[%emt 0:00:23]} 53. Nb6+ {[%emt 0:00:00]} Kb8 {[%emt 0:00:12]} 54. Nd5 {[%emt 0:00:00]} Bc7 {[%emt 0:00:42]} 55. Ra1 {[%emt 0:00:00]} Re6 {[%emt 0:00:49]} 56. g3 {[%emt 0:00:00]} g5 {[%emt 0:00:41]} 57. g4 {[%emt 0:00:00]} h4 {[%emt 0:00:21]} 58. Kf2 {[%emt 0:00:00]} Bg3+ {[%emt 0:00:17]} 59. Kf3 {[%emt 0:00:00]} Kc8 {[%emt 0:00:28]} 60. Rb1 {[%emt 0:00:00]} Bc7 {[%emt 0:01:09]} 61. Ra1 {[%emt 0:00:00]} Kd7 {[%emt 0:00:21]} 62. Kf2 {[%emt 0:00:00]} Kc6 {[%emt 0:00:49]} 63. Kf3 {[%emt 0:00:00]} Bd8 {[%emt 0:00:27]} 64. Ra3 {[%emt 0:01:12]} (64. Kf2 $142) 64... Re1 $19 {[%emt 0:00:23]} 65. Kf2 {[%emt 0:00:17]} Rh1 {[%emt 0:00:38]} 66. Kg2 {[%emt 0:00:04]} Rd1 {[%emt 0:00:40]} 67. Kh2 {[%emt 0:01:29]} Rd2+ {[%emt 0:00:37]} 68. Kg1 {[%emt 0:00:16]} Re2 {[%emt 0:00:26]} 69. Kh1 {[%emt 0:00:15]} Bc7 {[%emt 0:00:43]} 70. Kg1 {[%emt 0:00:23]} Be5 {[%emt 0:00:23]} 71. Rb3 {[%emt 0:00:22]} Bc7 {[%emt 0:00:30]} (71... Re1+ $142 72. Kg2 Bc7 73. Nxc7 Kxc7) 72. Ra3 $1 $19 {[%emt 0:00:16]} Rb2 {[%emt 0:00:15]} 73. Nxf6 {[%emt 0:00:56]} Rh2 {[%emt 0:00:13]} 74. Ne4 {[%emt 0:01:17]} Rxh3 {[%emt 0:00:13]} 75. Kg2 {[%emt 0:00:28]} Re3 {[%emt 0:00:40]} 76. Nxg5 {[%emt 0:00:54]} h3+ {[%emt 0:00:31]} 77. Kf2 {[%emt 0:02:00]} h2 {[%emt 0:00:08]} (77... Bg3+ $142 78. Kg1 Re1#) 78. Ra1 $19 {[%emt 0:00:09]} Rxd3 {[%emt 0:00:41]} 79. Nf3 {[%emt 0:00:21]} Rc3 {[%emt 0:00:29]} 80. Kg2 {[%emt 0:00:57]} Rc2+ {[%emt 0:00:15]} 81. Kh1 {[%emt 0:00:26]} Rf2 {[%emt 0:00:15]} 82. Nh4 {[%emt 0:00:27]} Rf4 {[%emt 0:00:23]} (82... d3 $142 83. Rc1 d2 (83... Bxa5 $2 84. Ng2 $19) 84. Rd1 Rf4 (84... Bxa5 $2 85. Ng2 $19) 85. Kxh2 Rf1+ (85... Rxg4+ $2 86. Kh3 $19) 86. Kg2 Rxd1 87. Nf3 Rg1+ (87... Bxa5 $2 88. Kf2 $19) 88. Kxg1 d1=Q+ (88... d1=R+ $2 89. Kf2 $19) 89. Kf2 Bf4 (89... Bxa5 {leads to mate.} 90. Ne5+ Kc7 91. Nf3 Qc2+ 92. Kg3 Qxc4 93. g5 Qe4 94. g6 Qxg6+ 95. Kf2 c4 96. Ke3 Qf5 97. Kf2 c3 98. Kg3 c2 99. Nd4 Qg6+ 100. Kh2 c1=Q 101. Ne6+ Qxe6 102. Kg2 Qg4+ 103. Kh2 Qh6#) (89... Qc2+ 90. Ke3 Qxc4 91. Ne1 Qxg4 92. Nd3 Qd4+ 93. Ke2 Qe4+ 94. Kd2 Bxa5+ 95. Kc2 Bb4 96. Kc1 Qxd3 97. Kb2 Qd1 98. Ka2 Qc2+ 99. Ka1 Bc3#) 90. Ng1 Qd2+ (90... Qxg4 91. Ne2 Bg5 92. Ng1 Bh4+ 93. Ke3 Qxg1+ 94. Ke2 Qg2+ 95. Ke3 Bg5+ 96. Kd3 Qf3+ 97. Kc2 Qa3 98. Kd1 Qd3+ 99. Ke1 Bh4#) 91. Kf3 Bg5 (91... Qe3+ 92. Kg2 Qg3+ 93. Kf1 Be3 94. Ke2 Qxg1 95. g5 Qf2+ 96. Kd3 Bxg5 97. Kc3 Qd2+ 98. Kb3 Qc1 99. Ka2 Qc2+ 100. Ka3 Bc1#) 92. Kg3 Qe3+ (92... Qxa5 93. Nf3 Qc3 94. Kg2 Qe3 95. Nxg5 Qxg5 96. Kh3 a5 97. Kg2 a4 98. Kh3 a3 99. Kg3 a2 100. Kf2 a1=Q 101. Ke2 Qxg4+ 102. Kd3 Qad4+ 103. Kc2 Qgd1#) 93. Kg2 Bh4 94. Nh3 Qg3+ 95. Kf1 Qf3+ (95... Qxh3+ {gets mated.} 96. Ke2 Bg5 97. Kf2 Qxg4 98. Kf1 Be3 99. Ke1 Qg2 100. Kd1 Qd2#) 96. Kg1 Qxh3 97. g5 Bg3 (97... Bxg5 98. Kf2 Bf4 99. Ke2 Qe3+ 100. Kf1 Qf3+ 101. Ke1 Qg2 102. Kd1 Qd2#) 98. g6 Qh2+ 99. Kf1 Qf2#) 83. Ng2 {[%emt 0:00:57]} Rxg4 {[%emt 0:00:13]} 84. Rf1 {[%emt 0:00:06]} d3 {[%emt 0:00:26]} 85. Rf6+ {[%emt 0:00:25]} Kd7 {[%emt 0:00:18]} 86. Rf7+ {[%emt 0:00:12]} Kd8 {[%emt 0:00:38]} 87. Rf3 {[%emt 0:00:15]} d2 {[%emt 0:00:15]} 88. Rf1 {[%emt 0:00:23]} Rxc4 {[%emt 0:00:09]} 89. Ne3 {[%emt 0:00:20]} Re4 {[%emt 0:00:17]} 90. Rd1 {[%emt 0:00:29]} Rxe3 {[%emt 0:00:10]} 91. Rxd2+ {[%emt 0:00:06]} Ke7 {[%emt 0:00:02]} 92. Rd1 {[%emt 0:00:10]} c4 {[%emt 0:00:04]} 93. Rf1 {[%emt 0:00:13]} c3 {[%emt 0:00:04]} 94. Rc1 {[%emt 0:00:04]} Rd3 {[%emt 0:00:19]} 95. Re1+ {[%emt 0:00:14]} Kd6 {[%emt 0:00:04]} 96. Rc1 {[%emt 0:00:06]} Kd5 {[%emt 0:00:04]} 97. Kg2 {[%emt 0:00:16]} Rd2+ {[%emt 0:00:08]} 98. Kh1 {[%emt 0:00:08]} c2 {[%emt 0:00:08]} 99. Rf1 {[%emt 0:00:25]} Rd1 {[%emt 0:00:05]} 100. Rxd1+ {[%emt 0:00:11]} cxd1=Q+ {[%emt 0:00:09]} 101. Kg2 {[%emt 0:00:06]} h1=Q+ {[%emt 0:00:14]} 102. Kf2 {[%emt 0:11:55]} Qhg1# {[%emt 0:00:12]} 0-1

[Event "Romanian-ch Youth Open U12 2024"]
[Site "Eforie Nord"]
[Date "2024.04.13"]
[Round "2.1"]
[White "Ionita, Eduard-Gabriel"]
[Black "Negrean, Andrei"]
[Result "0-1"]
[ECO "B20"]
[WhiteElo "1705"]
[BlackElo "2250"]
[Annotator "RC"]
[PlyCount "64"]
[EventDate "2024.04.10"]
[EventType "swiss"]
[EventCountry "ROU"]
[SourceTitle "playchess.com"]
[Source "ChessBase"]
[SourceQuality "1"]
[TimeControl "5400+30"]

1. e4 {[%emt 0:07:40]} c5 {[%emt 0:00:05]} 2. b4 {[%emt 0:00:03]} cxb4 {[%emt 0:00:39]} 3. a3 {[%emt 0:00:09]} d5 {[%emt 0:01:36]} 4. exd5 {[%emt 0:00:11]} Qxd5 {[%emt 0:00:10]} 5. Nf3 {[%emt 0:00:10]} e6 {[%emt 0:13:59]} 6. axb4 {[%emt 0:01:20]} Bxb4 {[%emt 0:02:22]} 7. c3 {[%emt 0:00:08]} Be7 {[%emt 0:02:30]} 8. d4 {[%emt 0:01:11]} Nf6 {[%emt 0:01:27]} 9. Bd3 {[%emt 0:02:42]} O-O {[%emt 0:01:39]} 10. O-O {[%emt 0:00:42]} b6 {[%emt 0:03:50]} 11. Na3 {[%emt 0:02:48]} Qd8 {[%emt 0:04:30]} 12. Qc2 {[%emt 0:04:18]} Bb7 {[%emt 0:02:32]} 13. Ne5 {[%emt 0:06:02]} Nbd7 {[%emt 0:05:01]} 14. Nac4 {[%emt 0:01:20]} h6 {[%emt 0:06:42]} 15. f4 {[%emt 0:02:32]} Bd5 {[%emt 0:10:02]} 16. Nxd7 {[%emt 0:03:01]} Nxd7 {[%emt 0:01:27]} 17. Ne5 {[%emt 0:00:44]} a5 {[%emt 0:03:24]} 18. Qf2 {[%emt 0:01:43]} Rc8 {[%emt 0:03:13]} 19. Bd2 {[%emt 0:01:44]} Nxe5 {[%emt 0:02:47]} 20. fxe5 {[%emt 0:00:07]} Bg5 {[%emt 0:00:21]} 21. Bxg5 {[%emt 0:00:53]} Qxg5 {[%emt 0:00:11]} 22. h4 {[%emt 0:00:55]} Qe7 {[%emt 0:02:01]} 23. Rac1 {[%emt 0:01:05]} Bc4 {[%emt 0:01:27]} 24. Rfd1 {[%emt 0:00:50]} a4 {[%emt 0:03:44]} 25. Bxc4 {[%emt 0:01:37]} Rxc4 {[%emt 0:00:04]} 26. Qa2 {[%emt 0:00:12]} Rfc8 {[%emt 0:00:40]} 27. Rd3 {[%emt 0:01:40]} Qxh4 {[%emt 0:00:35]} 28. Rb1 {[%emt 0:02:05]} Qe4 {[%emt 0:01:51]} 29. Rbd1 {[%emt 0:00:05]} Rxc3 {[%emt 0:02:17]} 30. Rxc3 {[%emt 0:00:04]} Rxc3 {[%emt 0:00:03]} 31. Qxa4 {[%emt 0:00:09]} Rc2 {[%emt 0:00:07]} 32. Qa8+ {[%emt 0:01:11]} Qxa8 {[%emt 0:00:06]} 0-1

[Event "Romanian-ch Youth Open U12 2024"]
[Site "Eforie Nord"]
[Date "2024.04.13"]
[Round "2.2"]
[White "Petroff, Vlad"]
[Black "Maier, Alexandru Sever"]
[Result "1-0"]
[ECO "D35"]
[WhiteElo "1999"]
[BlackElo "1702"]
[Annotator "RC"]
[PlyCount "82"]
[EventDate "2024.04.10"]
[EventType "swiss"]
[EventCountry "ROU"]
[SourceTitle "playchess.com"]
[Source "ChessBase"]
[SourceQuality "1"]
[TimeControl "5400+30"]

1. d4 {[%emt 0:00:10]} d5 {[%emt 0:00:09]} 2. c4 {[%emt 0:00:12]} e6 {[%emt 0:00:12]} 3. Nc3 {[%emt 0:00:08]} Nf6 {[%emt 0:00:12]} 4. cxd5 {[%emt 0:00:38]} exd5 {[%emt 0:00:06]} 5. Bg5 {[%emt 0:00:27]} Be7 {[%emt 0:00:26]} 6. e3 {[%emt 0:00:51]} O-O {[%emt 0:00:31]} 7. Bd3 {[%emt 0:00:10]} h6 {[%emt 0:01:06]} 8. h4 {[%emt 0:11:47]} b6 {[%emt 0:11:26]} 9. Qc2 {[%emt 0:03:21]} a6 {[%emt 0:02:20]} 10. Nf3 {[%emt 0:02:26]} Bb7 {[%emt 0:03:45]} 11. O-O-O {[%emt 0:02:11]} Nbd7 {[%emt 0:08:48]} 12. g4 {[%emt 0:03:30]} Re8 {[%emt 0:22:31]} 13. Bxf6 {[%emt 0:01:05]} Nxf6 {[%emt 0:01:06]} 14. g5 {[%emt 0:00:17]} Nd7 {[%emt 0:13:13]} 15. gxh6 {[%emt 0:00:41]} gxh6 {[%emt 0:00:41]} 16. Rdg1+ {[%emt 0:00:05]} Kf8 {[%emt 0:01:01]} 17. Bh7 {[%emt 0:03:50]} Bf6 {[%emt 0:01:24]} 18. Qf5 {[%emt 0:04:18]} c6 {[%emt 0:08:03]} 19. Rg2 {[%emt 0:03:00]} Ke7 {[%emt 0:03:09]} 20. e4 {[%emt 0:02:02]} Qc7 {[%emt 0:06:12]} 21. exd5 {[%emt 0:01:49]} cxd5 {[%emt 0:00:11]} 22. Re1+ {[%emt 0:01:13]} Kd8 {[%emt 0:01:05]} 23. Rg8 {[%emt 0:01:34]} Rxg8 {[%emt 0:00:30]} 24. Bxg8 {[%emt 0:00:06]} Qc4 {[%emt 0:03:40]} 25. Bxf7 {[%emt 0:01:22]} Bc6 {[%emt 0:01:42]} 26. Bxd5 {[%emt 0:05:53]} Bxd5 {[%emt 0:01:06]} 27. Qxd5 {[%emt 0:00:01]} Qxd5 {[%emt 0:00:29]} 28. Nxd5 {[%emt 0:00:04]} Rc8+ {[%emt 0:00:33]} 29. Kd2 {[%emt 0:00:46]} Rc4 {[%emt 0:00:53]} 30. Nxf6 {[%emt 0:02:01]} Nxf6 {[%emt 0:00:24]} 31. Re6 {[%emt 0:00:11]} Ng4 {[%emt 0:00:27]} 32. Rxb6 {[%emt 0:00:14]} Ra4 {[%emt 0:00:12]} 33. a3 {[%emt 0:00:17]} h5 {[%emt 0:00:58]} 34. Rd6+ {[%emt 0:00:31]} Ke7 {[%emt 0:00:31]} 35. Rd5 {[%emt 0:00:06]} Nf6 {[%emt 0:00:21]} 36. Re5+ {[%emt 0:00:58]} Kd6 {[%emt 0:00:45]} 37. Kc3 {[%emt 0:00:34]} Nd5+ {[%emt 0:01:24]} 38. Kd3 {[%emt 0:00:49]} Nf6 {[%emt 0:00:11]} 39. Nd2 {[%emt 0:01:28]} Nd5 {[%emt 0:02:56]} 40. Nc4+ {[%emt 0:00:35]} Kc6 {[%emt 0:01:22]} 41. Rxd5 {[%emt 0:49:19]} Kxd5 {[%emt 0:00:00]} 1-0

[Event "Romanian-ch Youth Open U12 2024"]
[Site "Eforie Nord"]
[Date "2024.04.13"]
[Round "3.1"]
[White "Negrean, Andrei"]
[Black "Ponta-Facalet, Zeno-Andrei"]
[Result "1-0"]
[ECO "B15"]
[WhiteElo "2250"]
[BlackElo "1783"]
[Annotator "RC"]
[PlyCount "131"]
[EventDate "2024.04.10"]
[EventType "swiss"]
[EventCountry "ROU"]
[SourceTitle "playchess.com"]
[Source "ChessBase"]
[SourceQuality "1"]
[TimeControl "5400+30"]

1. e4 {[%emt 0:00:05]} c6 {[%emt 0:00:12]} 2. d4 {[%emt 0:00:32]} d5 {[%emt 0:00:15]} 3. Nc3 {[%emt 0:00:16]} dxe4 {[%emt 0:00:34]} 4. Nxe4 {[%emt 0:00:09]} Nf6 {[%emt 0:00:37]} 5. Nxf6+ {[%emt 1:31:58]} exf6 {[%emt 0:00:11]} 6. c3 {[%emt 0:00:00]} Bd6 {[%emt 0:01:50]} 7. Bd3 {[%emt 0:00:00]} O-O {[%emt 0:00:51]} 8. Ne2 {[%emt 0:00:00]} Re8 {[%emt 0:06:40]} 9. Qc2 {[%emt 0:00:00]} h5 {[%emt 0:01:56]} 10. O-O {[%emt 0:00:00]} h4 {[%emt 0:00:47]} 11. h3 {[%emt 0:00:00]} Nd7 {[%emt 0:01:03]} 12. Bf4 {[%emt 0:00:00]} Nf8 {[%emt 0:01:20]} 13. Bxd6 {[%emt 0:00:00]} Qxd6 {[%emt 0:00:21]} 14. Rfe1 {[%emt 0:00:00]} Bd7 {[%emt 0:02:58]} 15. Qd2 {[%emt 0:00:00]} Ne6 {[%emt 0:09:21]} 16. c4 {[%emt 0:00:00]} Ng5 {[%emt 0:02:58]} 17. Qf4 {[%emt 0:00:00]} Qxf4 {[%emt 0:03:11]} 18. Nxf4 {[%emt 0:00:00]} Ne6 {[%emt 0:07:28]} 19. Nxe6 {[%emt 0:00:00]} fxe6 {[%emt 0:09:46]} 20. Bg6 {[%emt 0:00:00]} Rf8 {[%emt 0:01:47]} 21. Rad1 {[%emt 0:00:00]} Be8 {[%emt 0:00:37]} 22. Be4 {[%emt 0:00:00]} Bf7 {[%emt 0:01:36]} 23. b4 {[%emt 0:00:00]} Bh5 {[%emt 0:00:54]} 24. f3 {[%emt 0:00:00]} f5 {[%emt 0:01:53]} 25. Bc2 {[%emt 0:00:00]} Bf7 {[%emt 0:00:40]} 26. a4 {[%emt 0:00:00]} a5 {[%emt 0:01:59]} 27. bxa5 {[%emt 0:00:00]} Rxa5 {[%emt 0:00:59]} 28. Re5 {[%emt 0:00:00]} Ra7 {[%emt 0:07:57]} 29. Kf2 {[%emt 0:00:00]} g6 {[%emt 0:00:46]} 30. c5 {[%emt 0:00:00]} Kg7 {[%emt 0:00:26]} 31. Bb3 {[%emt 0:00:00]} Kf6 {[%emt 0:00:46]} 32. Rde1 {[%emt 0:00:00]} Re8 {[%emt 0:00:28]} 33. R5e2 {[%emt 0:00:00]} Raa8 {[%emt 0:02:16]} 34. Rb2 {[%emt 0:00:00]} Ra7 {[%emt 0:00:33]} 35. Re5 {[%emt 0:00:00]} Raa8 {[%emt 0:03:40]} 36. Ke3 {[%emt 0:00:00]} Re7 {[%emt 0:06:18]} 37. Kd3 {[%emt 0:00:00]} Rd7 {[%emt 0:00:36]} 38. Kc3 {[%emt 0:00:00]} Rad8 {[%emt 0:01:39]} 39. Rd2 {[%emt 0:00:00]} Ra8 {[%emt 0:00:41]} 40. Re1 {[%emt 0:01:15]} Rb8 {[%emt 0:00:52]} 41. a5 {[%emt 0:01:14]} Ra8 {[%emt 0:03:42]} 42. Ra1 {[%emt 0:00:55]} Rdd8 {[%emt 0:00:51]} 43. Bc4 {[%emt 0:00:26]} g5 {[%emt 0:04:20]} 44. Rb2 {[%emt 0:02:29]} Ra7 {[%emt 0:02:12]} 45. Rb6 {[%emt 0:00:56]} Be8 {[%emt 0:00:58]} 46. a6 {[%emt 0:04:31]} bxa6 {[%emt 0:00:41]} 47. Rbxa6 {[%emt 0:00:24]} Rxa6 {[%emt 0:00:31]} 48. Rxa6 {[%emt 0:00:11]} e5 {[%emt 0:00:12]} 49. d5 {[%emt 0:00:08]} Rc8 {[%emt 0:01:37]} 50. Rb6 {[%emt 0:00:53]} Kg7 {[%emt 0:02:48]} 51. Ba6 {[%emt 0:00:39]} Rc7 {[%emt 0:00:48]} 52. d6 {[%emt 0:00:45]} Ra7 {[%emt 0:00:41]} 53. Bb7 {[%emt 0:00:15]} Ra5 {[%emt 0:00:13]} 54. Kb4 {[%emt 0:00:17]} Ra1 {[%emt 0:00:35]} 55. Bxc6 {[%emt 0:00:26]} Rb1+ {[%emt 0:00:20]} 56. Ka3 {[%emt 0:00:22]} Rxb6 {[%emt 0:00:59]} 57. cxb6 {[%emt 0:00:06]} Bxc6 {[%emt 0:00:03]} 58. b7 {[%emt 0:00:09]} Bxb7 {[%emt 0:00:17]} 59. d7 {[%emt 0:00:02]} Kf7 {[%emt 0:00:29]} 60. d8=Q {[%emt 0:00:07]} Kg6 {[%emt 0:00:16]} 61. Qb6+ {[%emt 0:00:10]} Kh5 {[%emt 0:00:22]} 62. Qxb7 {[%emt 0:00:08]} g4 {[%emt 0:08:53]} 63. fxg4+ {[%emt 0:00:09]} fxg4 {[%emt 0:00:00]} 64. Qh7+ {[%emt 0:00:10]} Kg5 {[%emt 0:00:00]} 65. Qg7+ {[%emt 0:00:01]} Kh5 {[%emt 0:00:00]} 66. hxg4# {[%emt 0:00:16]} 1-0